bitfinex/quotes_ETHUSD_20250930
["timestamp","ask_amount","ask_price","bid_price","bid_amount"]
[1759213873980,2.37976249,4202.1,4202.0,0.4447]
[1759213874180,2.37976249,4202.1,4201.8,0.4467]
[1759213874379,2.769,4202.2,4201.9,0.4447]
[1759213874380,2.769,4202.0,4201.9,0.4447]
[1759213875190,2.769,4202.0,4201.9,0.6415]
[1759213876607,2.37969387,4202.3,4201.9,0.6415]
[1759213876803,2.37969387,4202.3,4202.0,0.6611]
[1759213877004,2.37969387,4202.3,4202.0,0.1968]
[1759213877217,2.37969387,4202.3,4202.1,0.4643]
[1759213877218,2.767,4202.2,4202.1,0.4643]
[1759213878012,0.232,4202.7,4202.1,0.4643]
[1759213878316,2.37959988,4202.4,4202.1,0.4643]
[1759213878513,2.766,4202.3,4202.2,0.4643]
[1759213879014,5.14564923,4202.3,4202.2,0.4643]
[1759213879422,2.766,4202.3,4201.8,0.6631]
[1759213879717,2.998,4202.3,4201.9,0.792]
[1759213879894,2.37980333,4202.1,4201.8,0.002]
[1759213880211,2.766,4202.1,4201.9,4.65929999]
[1759213880411,2.766,4202.1,4202.0,0.4643]
[1759213880606,2.766,4202.1,4202.0,14.9643]
[1759213880988,5.14576249,4202.1,4202.0,0.4643]
[1759213881705,2.37981913,4202.0,4201.9,19.48699999]
[1759213881903,2.766,4202.1,4201.9,19.48699999]
[1759213882096,5.14580864,4202.1,4201.9,19.95129999]
[1759213882498,5.14580864,4202.1,4202.0,0.4643]
[1759213883515,2.37981913,4202.0,4201.9,19.48699999]
[1759213884548,2.3797184,4202.2,4201.9,19.48699999]
[1759213884692,0.232,4202.4,4201.9,19.95129999]
[1759213884693,2.763,4202.1,4201.9,19.95129999]
[1759213885031,2.37981913,4202.0,4201.9,19.95129999]
[1759213886022,5.14277478,4202.1,4201.9,19.95129999]
[1759213886321,2.37981913,4202.0,4201.9,19.95129999]
[1759213887627,2.37981913,4202.0,4201.9,5.45129999]
[1759213888203,2.37981913,4202.0,4201.9,19.95129999]
[1759213890609,2.61181913,4202.0,4201.9,4.19499999]
[1759213891512,3.05361913,4202.0,4201.9,4.19499999]
[1759213894737,3.87325255,4202.0,4201.9,4.19499999]
[1759213897850,2.37987577,4201.9,4201.8,0.002]
[1759213898062,5.13487577,4201.9,4201.8,0.002]
[1759213898269,5.64891487,4201.9,4201.8,0.002]
[1759213898449,7.44552312,4201.9,4201.8,0.002]
[1759213905972,7.00372312,4201.9,4201.8,0.002]
[1759213906274,7.44772312,4201.9,4201.8,0.002]
[1759213909673,14.39060882,4201.9,4201.8,0.002]
[1759213909861,17.39060882,4201.9,4201.8,0.002]
[1759213910775,17.39032307,4201.9,4201.8,0.002]
[1759213913781,13.95932307,4201.9,4201.8,0.002]
[1759213913948,5.89362912,4201.9,4201.8,0.002]
[1759213914147,5.13387577,4201.9,4201.8,0.6695]
[1759213914365,5.13387577,4201.9,4201.8,15.1695]
[1759213914582,2.37987577,4201.9,4201.8,15.1695]
[1759213914750,5.13387577,4201.9,4201.8,15.1695]
[1759213915491,2.754,4201.9,4201.8,15.1695]
[1759213915663,5.13387577,4201.9,4201.8,15.1695]
[1759213917699,2.37987577,4201.9,4201.8,15.1695]
[1759213917989,5.13387577,4201.9,4201.8,15.1695]
[1759213918475,2.37971218,4202.2,4201.8,15.1695]
[1759213918654,5.13376841,4202.1,4201.9,0.6675]
[1759213918854,2.754,4202.0,4201.8,14.502]
[1759213919559,2.754,4202.0,4201.9,0.6675]
[1759213919871,2.37976841,4202.1,4201.9,0.6675]
[1759213920054,5.13376841,4202.1,4201.9,0.6675]
[1759213920258,2.754,4202.1,4202.0,0.6675]
[1759213920455,5.13376249,4202.1,4202.0,0.6675]
[1759213921191,2.754,4202.1,4202.0,0.6675]
[1759213921689,5.13376249,4202.1,4202.0,0.6675]
[1759213922686,5.13376249,4202.1,4202.0,15.1675]
[1759213922892,2.37976249,4202.1,4202.0,15.1675]
[1759213923058,5.13376249,4202.1,4202.0,15.1675]
[1759213923590,2.753,4202.1,4202.0,15.1675]
[1759213923790,5.13276249,4202.1,4202.0,15.1675]
[1759213923954,2.753,4202.1,4202.0,15.1675]
[1759213924688,0.51393195,4202.5,4202.0,19.36249999]
[1759213924878,2.3797222,4202.2,4202.0,18.69499999]
[1759213925187,2.753,4202.1,4202.0,18.69499999]
[1759213925567,2.753,4202.1,4202.0,19.36249999]
[1759213928603,0.231,4203.2,4202.1,0.792]
[1759213928805,2.984,4203.1,4202.2,0.6675]
[1759213929004,2.37937883,4202.8,4202.4,0.792]
[1759213929205,5.13246805,4202.7,4202.5,0.6675]
[1759213929378,2.753,4202.6,4202.5,0.1968]
[1759213929572,2.37939946,4202.8,4202.4,0.792]
[1759213929780,2.753,4202.7,4202.5,0.1968]
[1759213929978,2.753,4202.7,4202.6,0.6683]
[1759213930401,2.37925291,4203.0,4202.6,0.4715]
[1759213930605,5.13231902,4202.9,4202.7,0.6683]
[1759213930789,5.13231902,4202.9,4202.8,0.6683]
[1759213931116,5.13231902,4202.9,4202.8,4.66649999]
[1759213932913,5.13231902,4202.9,4202.8,4.19499999]
[1759213933085,5.13231902,4202.9,4202.8,18.69499999]
[1759213933407,2.753,4202.9,4202.8,19.16649999]
[1759213934209,2.3792133,4203.1,4202.8,19.16649999]
[1759213934408,5.13221778,4203.1,4202.9,0.4715]
[1759213934788,2.753,4203.1,4202.9,0.4715]
[1759213935575,2.37915506,4203.2,4202.9,0.792]
[1759213935780,5.13220981,4203.1,4202.9,0.792]
[1759213935994,5.13220981,4203.1,4203.0,0.4715]
[1759213936515,2.37925291,4203.0,4202.9,0.792]
[1759213936687,2.753,4203.1,4202.9,0.792]
[1759213936892,2.37925291,4203.0,4202.9,1.2635]
[1759213937408,5.1312099,4203.1,4202.9,1.2635]
[1759213937610,5.1312099,4203.1,4202.9,15.7635]
[1759213938111,2.3792099,4203.1,4202.9,15.7635]
[1759213938277,2.61693879,4203.3,4202.9,15.7635]
[1759213938278,2.37925291,4203.0,4202.9,15.7635]
[1759213938673,2.37925291,4203.0,4202.9,15.292]
[1759213939716,2.37925291,4203.0,4202.9,14.5]
[1759213940010,3.84459245,4203.0,4202.9,14.5]
[1759213940901,2.37930952,4202.9,4202.8,4.19499999]
[1759213941081,5.13130952,4202.9,4202.8,4.19499999]
[1759213941282,5.84560952,4202.9,4202.8,4.19499999]
[1759213942510,5.37620952,4202.9,4202.8,4.19499999]
[1759213942982,6.27379972,4202.9,4202.8,4.19499999]
[1759213943178,2.37950833,4202.6,4202.4,4.63729999]
[1759213943522,2.37953599,4202.5,4202.4,4.98699999]
[1759213943815,2.37953599,4202.5,4202.4,0.792]
[1759213944003,2.37953599,4202.5,4202.4,1.2343]
[1759213944177,2.37953599,4202.5,4202.4,0.792]
[1759213944582,2.37949406,4202.6,4202.4,0.792]
[1759213944815,5.13143593,4202.7,4202.4,1.4311]
[1759213945019,5.13143593,4202.7,4202.5,0.6391]
[1759213945178,5.13143593,4202.7,4202.6,0.4423]
[1759213945179,2.37943593,4202.7,4202.6,0.4423]
[1759213945385,5.13143593,4202.7,4202.6,0.4423]
[1759213945818,0.71570263,4203.6,4202.5,0.792]
[1759213946018,0.71570263,4203.6,4202.7,0.792]
[1759213946019,2.37930551,4203.0,4202.7,0.792]
[1759213946216,2.37930952,4202.9,4202.8,1.4311]
[1759213946517,2.37930952,4202.9,4202.8,1.2343]
[1759213946922,2.37921375,4203.1,4202.8,1.2343]
[1759213947096,5.13121375,4203.1,4202.9,14.5]
[1759213947595,2.752,4203.0,4202.9,14.5]
[1759213947920,0.98374873,4203.7,4203.0,0.792]
[1759213948131,2.752,4203.6,4203.2,0.792]
[1759213948288,2.37905184,4203.4,4203.3,1.2343]
[1759213948488,5.13094048,4203.6,4203.3,15.7343]
[1759213948712,2.752,4203.6,4203.4,1.2343]
[1759213948913,2.752,4203.6,4203.5,1.4311]
[1759213949424,0.001,4203.7,4203.6,0.792]
[1759213949722,2.753,4203.7,4203.6,1.2343]
[1759213949922,0.001,4203.7,4203.6,1.2343]
[1759213950228,2.37985672,4203.7,4203.6,1.2343]
[1759213950517,0.001,4203.7,4203.6,0.792]
[1759213950887,2.37985672,4203.7,4203.6,0.792]
[1759213951217,0.2459,4203.7,4203.6,0.792]
[1759213951418,0.001,4203.7,4203.6,0.792]
[1759213952728,0.001,4203.7,4203.4,0.792]
[1759213952923,0.001,4203.7,4203.5,0.4423]
[1759213953133,0.001,4203.7,4203.6,0.792]
[1759213953988,2.37985672,4203.7,4203.6,0.792]
[1759213954306,0.001,4203.7,4203.6,0.792]
[1759213956325,7.19909182,4203.7,4203.3,0.792]
[1759213956620,2.3790265,4203.4,4203.1,0.792]
[1759213956803,2.3790265,4203.4,4203.3,0.792]
[1759213956992,2.6239265,4203.4,4203.3,0.792]
[1759213957438,3.0933265,4203.4,4203.3,0.792]
[1759213958228,5.8443265,4203.4,4203.3,0.792]
[1759213958896,3.4653,4203.4,4203.3,0.792]
[1759213959298,2.9959,4203.4,4203.3,0.792]
[1759213961022,4.10299834,4203.4,4202.8,0.002]
[1759213961210,2.37918578,4203.2,4202.8,0.002]
[1759213961728,2.37930952,4202.9,4202.8,0.002]
[1759213962228,2.61950952,4202.9,4202.8,0.002]
[1759213963311,2.61950952,4202.9,4202.8,4.19699999]
[1759213964724,2.75,4203.0,4202.8,4.19699999]
[1759213965198,5.12929772,4203.0,4202.8,4.19699999]
[1759213965401,2.37930952,4202.9,4202.8,4.19699999]
[1759213967434,2.37920127,4203.1,4202.8,4.82729999]
[1759213967603,2.37927432,4203.0,4202.8,4.63049999]
[1759213968012,2.37917596,4203.2,4202.9,1.2255]
[1759213968218,2.75,4203.1,4203.0,1.2255]
[1759213968539,2.75,4203.2,4203.0,0.792]
[1759213969223,2.75,4203.2,4203.1,4.19499999]
[1759213969630,5.12914306,4203.2,4203.1,4.19499999]
[1759213969820,0.2402,4203.4,4203.1,4.19499999]
[1759213970020,5.36929789,4203.3,4203.1,4.19499999]
[1759213971324,5.12909789,4203.3,4203.1,4.19499999]
[1759213972009,2.37902381,4203.5,4203.1,4.19499999]
[1759213972348,2.37985894,4203.7,4203.2,1.24929139]
[1759213972641,2.749,4203.6,4203.4,0.792]
[1759213973027,2.749,4203.6,4203.4,1.2255]
[1759213974146,2.37987515,4203.7,4203.4,1.2255]
[1759213974444,2.749,4203.6,4203.4,1.2255]
[1759213974940,5.12794257,4203.6,4203.2,0.792]
[1759213975237,5.12794257,4203.6,4203.4,0.792]
[1759213975441,2.3789699,4203.5,4203.4,0.792]
[1759213975744,2.3789699,4203.5,4203.3,4.19499999]
[1759213975745,2.3790265,4203.4,4203.3,4.19499999]
[1759213975940,3.0838265,4203.4,4203.3,4.19499999]
[1759213977008,2.6192265,4203.4,4203.3,4.19499999]
[1759213977809,5.3682265,4203.4,4203.3,4.19499999]
[1759213978950,5.8328265,4203.4,4203.3,4.19499999]
[1759213979242,5.3682265,4203.4,4203.3,4.19499999]
[1759213981951,6.10689005,4203.4,4203.3,4.19499999]
[1759213984424,5.40209005,4203.4,4203.3,4.19499999]
[1759213985046,3.02306355,4203.4,4203.3,4.19499999]
[1759213985351,2.748,4203.4,4203.3,4.62849999]
[1759213985526,2.748,4203.4,4203.3,4.19499999]
[1759213986459,5.1270265,4203.4,4203.3,4.19499999]
[1759213987035,2.748,4203.4,4203.2,4.19499999]
[1759213988325,5.12704094,4203.4,4203.2,4.62849999]
[1759213988520,2.3790831,4203.3,4203.2,4.98699999]
[1759213988720,5.12703904,4203.4,4203.2,4.98699999]
[1759213989552,2.3790831,4203.3,4203.2,4.98699999]
[1759213990158,5.127042,4203.4,4203.2,4.98699999]
[1759213991164,2.379042,4203.4,4203.2,4.98699999]
[1759213991321,5.127042,4203.4,4203.2,4.98699999]
[1759213992146,0.2322,4203.4,4203.3,0.792]
[1759213992450,2.748,4203.4,4203.3,1.26699083]
[1759213992648,2.748,4203.4,4203.3,1.46379083]
[1759213992859,2.37892984,4203.6,4203.3,5.65879082]
[1759213993039,5.12692984,4203.6,4203.5,0.792]
[1759213993919,2.37892984,4203.6,4203.5,0.792]
[1759213994123,0.001,4203.7,4203.5,0.792]
[1759213994124,0.001,4203.7,4203.5,0.4512]
[1759213994437,2.748,4203.7,4203.5,0.4512]
[1759213995555,5.1268652,4203.7,4203.5,0.4512]
[1759213995717,5.1268652,4203.7,4203.4,0.792]
[1759213996017,5.1268652,4203.7,4203.4,1.2432]
[1759213996655,2.748,4203.7,4203.4,1.2432]
[1759213997518,2.748,4203.7,4203.5,0.6286]
[1759213997852,0.001,4203.7,4203.6,1.4206]
[1759213998825,0.001,4203.7,4203.6,5.61559999]
[1759214000645,0.001,4203.7,4203.6,20.11559999]
[1759214001570,0.001,4203.7,4203.6,19.91879999]
[1759214001737,0.001,4203.7,4203.6,24.18038976]
[1759214002259,0.001,4203.7,4203.6,22.86259999]
[1759214003385,0.001,4203.7,4203.6,19.48699999]
[1759214003590,2.62825672,4203.7,4203.6,19.48699999]
[1759214003779,3.10055672,4203.7,4203.6,19.48699999]
[1759214007576,5.84655672,4203.7,4203.6,18.69499999]
[1759214010678,5.84655672,4203.7,4203.6,14.5]
[1759214013365,5.37425672,4203.7,4203.6,14.5]
[1759214013564,5.37425672,4203.7,4203.4,4.19499999]
[1759214013565,2.3789699,4203.5,4203.4,4.19499999]
[1759214013796,3.0996699,4203.5,4203.4,4.19499999]
[1759214014299,2.6273699,4203.5,4203.4,4.19499999]
[1759214015879,5.3723699,4203.5,4203.4,4.19499999]
[1759214016694,2.3790265,4203.4,4203.3,4.19699999]
[1759214017300,2.3790265,4203.4,4203.3,18.69699999]
[1759214020383,2.3790265,4203.4,4203.3,4.19699999]
[1759214020811,2.3789166,4203.6,4203.3,18.69699999]
[1759214021013,2.3790265,4203.4,4203.3,19.15709999]
[1759214021317,2.3790265,4203.4,4203.3,18.69699999]
[1759214022594,2.6244265,4203.4,4203.3,14.502]
[1759214027228,5.3684265,4203.4,4203.3,14.502]
[1759214027918,5.1230265,4203.4,4203.3,14.502]
[1759214028500,5.1230265,4203.4,4203.3,18.69699999]
[1759214028896,5.3684265,4203.4,4203.3,18.69699999]
[1759214029212,5.8077265,4203.4,4203.3,18.69699999]
[1759214029515,5.3684265,4203.4,4203.3,18.69699999]
[1759214030688,2.6244265,4203.4,4203.3,18.69699999]
[1759214031090,5.3684265,4203.4,4203.3,18.69699999]
[1759214031515,2.3790265,4203.4,4203.3,18.69699999]
[1759214031724,2.3790265,4203.4,4203.3,4.19699999]
[1759214031890,2.3790265,4203.4,4203.3,0.002]
[1759214032090,5.3674265,4203.4,4203.3,14.502]
[1759214032322,5.8067265,4203.4,4203.3,14.502]
[1759214032823,3.0637265,4203.4,4203.3,0.002]
[1759214033019,5.8067265,4203.4,4203.3,0.002]
[1759214033593,3.53996025,4203.4,4203.3,0.002]
[1759214033794,6.28296025,4203.4,4203.3,0.002]
[1759214035012,3.53996025,4203.4,4203.3,0.002]
[1759214035191,6.28296025,4203.4,4203.3,0.002]
[1759214036006,3.53996025,4203.4,4203.3,0.002]
[1759214036205,6.28296025,4203.4,4203.3,0.002]
[1759214037022,3.53996025,4203.4,4203.3,0.002]
[1759214037217,6.28296025,4203.4,4203.3,0.002]
[1759214040198,3.53996025,4203.4,4203.3,0.002]
[1759214040398,6.28296025,4203.4,4203.3,0.002]
[1759214041332,6.28196025,4203.4,4203.3,0.002]
[1759214041500,5.84266025,4203.4,4203.3,0.002]
[1759214041695,6.28196025,4203.4,4203.3,0.002]
[1759214044541,5.84266025,4203.4,4203.3,0.002]
[1759214045041,5.3664265,4203.4,4203.3,0.002]
[1759214045744,2.3790265,4203.4,4203.3,0.002]
[1759214045955,0.51407744,4203.5,4203.4,0.792]
[1759214045956,2.742,4203.5,4203.4,0.792]
[1759214046136,2.37901191,4203.5,4203.4,1.4489]
[1759214046318,2.37901191,4203.5,4203.4,15.7521]
[1759214047339,2.37901191,4203.5,4203.4,14.9601]
[1759214047549,2.37901191,4203.5,4203.4,14.5]
[1759214047550,2.62441191,4203.5,4203.4,14.5]
[1759214047747,2.3789699,4203.5,4203.4,14.9601]
[1759214047917,2.3789699,4203.5,4203.4,15.1569]
[1759214048627,5.1209699,4203.5,4203.4,15.1569]
[1759214051363,0.001,4203.7,4203.4,15.1569]
[1759214051364,0.001,4203.7,4203.5,0.792]
[1759214051650,0.001,4203.7,4203.5,1.4592]
[1759214051651,2.37989741,4203.7,4203.5,1.4592]
[1759214051990,5.11991331,4203.6,4203.5,0.792]
[1759214052119,2.37891331,4203.6,4203.5,0.792]
[1759214052636,2.3789699,4203.5,4203.4,14.5]
[1759214052842,2.3789699,4203.5,4203.4,15.292]
[1759214053369,0.001,4203.7,4203.4,15.292]
[1759214053774,0.001,4203.7,4203.5,0.4704]
[1759214053941,2.37896276,4203.6,4203.5,0.4704]
[1759214054141,2.3789699,4203.5,4203.4,15.292]
[1759214054343,2.3789699,4203.5,4203.4,15.7624]
[1759214054538,2.3789699,4203.5,4203.4,15.292]
[1759214055179,2.3790265,4203.4,4203.3,0.002]
[1759214055473,2.6146265,4203.4,4203.3,4.19699999]
[1759214059180,5.3556265,4203.4,4203.3,18.69699999]
[1759214061185,5.3556265,4203.4,4203.3,14.502]
[1759214061788,5.1200265,4203.4,4203.3,14.502]
[1759214064089,5.3556265,4203.4,4203.3,14.502]
[1759214067604,5.1200265,4203.4,4203.3,14.502]
[1759214069303,5.3556265,4203.4,4203.3,14.502]
[1759214069818,5.7981265,4203.4,4203.3,14.502]
[1759214070388,5.3556265,4203.4,4203.3,14.502]
[1759214076311,5.3556265,4203.4,4203.3,0.002]
[1759214080330,5.1200265,4203.4,4203.3,0.002]
[1759214081003,2.3790265,4203.4,4203.3,0.002]
[1759214081238,5.1170265,4203.4,4203.3,0.002]
[1759214083534,1.2298103,4203.5,4203.3,0.002]
[1759214083736,2.37892002,4203.6,4203.4,0.792]
[1759214083936,2.37892002,4203.6,4203.5,1.421]
[1759214084233,2.37891331,4203.6,4203.5,15.921]
[1759214084837,0.001,4203.7,4203.5,15.921]
[1759214085131,0.001,4203.7,4203.6,0.65278913]
[1759214088507,0.001,4203.7,4203.6,15.15278913]
[1759214088707,0.001,4203.7,4203.6,15.921]
[1759214090141,0.001,4203.7,4203.6,15.292]
[1759214090439,2.61985672,4203.7,4203.6,15.292]
[1759214091820,0.001,4203.7,4203.6,15.292]
[1759214093719,0.001,4203.7,4203.6,15.7242]
[1759214093915,0.001,4203.7,4203.6,1.2242]
[1759214094446,0.001,4203.7,4203.6,15.7242]
[1759214096948,0.001,4203.7,4203.6,15.292]
[1759214097749,0.001,4203.7,4203.6,0.792]
[1759214098046,0.001,4203.7,4203.6,15.292]
[1759214098351,2.37985672,4203.7,4203.6,15.292]
[1759214100128,0.001,4203.7,4203.6,15.292]
[1759214100455,2.37985672,4203.7,4203.6,15.292]
[1759214100825,0.001,4203.7,4203.6,15.7242]
[1759214101455,2.37985672,4203.7,4203.6,15.292]
[1759214101628,0.001,4203.7,4203.6,15.7242]
[1759214101953,2.37985672,4203.7,4203.6,15.7242]
[1759214102155,2.37985672,4203.7,4203.6,15.292]
[1759214103652,0.001,4203.7,4203.6,15.292]
[1759214104157,0.001,4203.7,4203.6,15.7242]
[1759214104363,0.001,4203.7,4203.6,1.2242]
[1759214104859,2.37985672,4203.7,4203.6,15.7242]
[1759214105166,0.001,4203.7,4203.6,15.7242]
[1759214106470,2.37985672,4203.7,4203.6,15.292]
[1759214107255,0.001,4203.7,4203.6,15.292]
[1759214107758,2.37985672,4203.7,4203.6,15.292]
[1759214108383,0.001,4203.7,4203.6,15.7242]
[1759214109694,0.001,4203.7,4203.6,18.6704]
[1759214110070,0.001,4203.7,4203.6,21.04931331]
[1759214110795,0.001,4203.7,4203.6,24.76463539]
[1759214111658,0.001,4204.2,4203.7,6.17085672]
[1759214111888,0.001,4204.2,4204.0,0.792]
[1759214112061,0.001,4204.2,4204.1,8.92841668]
[1759214112400,0.001,4204.2,4204.1,24.04903038]
[1759214112554,0.001,4204.2,4204.1,24.76422115]
[1759214113898,0.001,4204.2,4204.1,25.24032707]
[1759214124888,0.001,4204.2,4204.1,25.04352707]
[1759214125205,0.0099,4528.5,4205.8,2.37765236]
[1759214125206,0.2459,4206.8,4205.8,2.37765236]
[1759214125508,0.693,4206.2,4206.0,0.792]
[1759214125711,2.37721897,4206.6,4206.2,0.792]
[1759214125892,0.2377219,4206.5,4206.4,0.792]
[1759214126268,0.9307219,4206.5,4206.4,0.792]
[1759214126490,0.9307219,4206.5,4206.4,15.292]
[1759214127374,3.30799516,4206.5,4206.4,15.292]
[1759214128976,3.30799516,4206.5,4206.4,14.5]
[1759214129185,3.07027326,4206.5,4206.4,14.5]
[1759214129509,3.07027326,4206.5,4206.4,15.292]
[1759214129874,3.07027326,4206.5,4206.4,14.5]
[1759214132590,0.7150953,4206.7,4206.5,0.792]
[1759214132781,0.2459,4206.6,4206.5,0.792]
[1759214133587,0.2459,4207.2,4206.5,0.81577273]
[1759214133802,0.2459,4207.2,4206.7,0.792]
[1759214133985,0.2459,4207.2,4206.9,0.792]
[1759214134189,0.693,4207.4,4206.9,3.522]
[1759214134375,0.2459,4207.3,4206.9,3.522]
[1759214134795,2.37672262,4207.5,4206.9,3.522]
[1759214134998,2.37677211,4207.4,4206.9,3.522]
[1759214135198,2.37689444,4207.2,4206.9,3.522]
[1759214135403,2.37693681,4207.1,4206.9,3.9565]
[1759214135592,2.37693681,4207.1,4206.9,3.522]
[1759214136306,2.37693681,4207.1,4207.0,14.5]
[1759214136612,0.2459,4207.4,4207.1,0.792]
[1759214136787,2.82387158,4207.4,4207.3,0.792]
[1759214137193,2.82387158,4207.4,4207.3,15.292]
[1759214137395,3.06977158,4207.4,4207.3,15.292]
[1759214137914,0.693,4207.4,4207.3,15.292]
[1759214138510,0.2459,4207.4,4207.3,15.292]
[1759214138693,0.693,4207.4,4207.3,15.292]
[1759214139697,3.06976474,4207.4,4207.3,15.292]
[1759214140499,3.08786474,4207.4,4207.3,15.292]
[1759214141422,3.08786474,4207.4,4207.1,2.73]
[1759214141423,3.08786474,4207.4,4207.2,0.792]
[1759214141638,0.2402,4207.4,4207.2,0.792]
[1759214141918,0.2402,4207.4,4207.3,15.292]
[1759214142320,3.08216474,4207.4,4207.3,15.292]
[1759214142523,0.2402,4207.4,4207.3,15.292]
[1759214143114,0.2402,4207.6,4207.4,0.792]
[1759214143317,2.84183768,4207.7,4207.4,0.792]
[1759214143318,0.00113843,4209.7,4207.8,0.792]
[1759214143626,0.71485334,4208.3,4208.1,3.16836938]
[1759214143830,0.71485334,4208.3,4208.1,20.40636938]
[1759214143998,0.2402,4209.2,4208.1,18.31986938]
[1759214144198,0.4652,4209.4,4208.1,21.77339241]
[1759214144529,2.61590774,4209.3,4208.1,21.77339241]
[1759214144703,6.9384081,4209.6,4208.1,18.83759241]
[1759214144909,0.2402,4208.7,4208.1,19.20122303]
[1759214145117,0.2402,4208.7,4208.1,18.74652303]
[1759214145319,0.2402,4208.7,4208.1,19.20122303]
[1759214145514,2.37572322,4209.3,4208.1,21.77439241]
[1759214145715,0.2402,4209.0,4208.1,21.77439241]
[1759214146098,2.61608732,4209.0,4208.1,19.39802303]
[1759214146334,0.2402,4208.9,4208.1,19.39802303]
[1759214146532,2.37582994,4209.1,4208.1,19.20122303]
[1759214146533,2.3758198,4209.1,4208.1,19.20122303]
[1759214146717,0.2402,4209.3,4208.1,21.77439241]
[1759214146903,2.37580882,4209.1,4208.1,21.77439241]
[1759214147101,2.37575455,4209.2,4208.1,21.77439241]
[1759214147427,2.61589496,4209.3,4208.1,21.77439241]
[1759214147600,0.00113843,4209.7,4208.1,24.77439241]
[1759214148010,0.24133843,4209.7,4208.1,24.77439241]
[1759214148212,0.2402,4209.5,4208.1,24.77439241]
[1759214148527,2.61598189,4209.2,4208.1,22.03439241]
[1759214148710,2.37581214,4209.1,4208.1,22.39802303]
[1759214148906,2.37581214,4209.1,4208.1,19.65802303]
[1759214148907,0.2402,4209.0,4208.1,19.65802303]
[1759214149128,0.2402,4209.0,4208.1,21.77439241]
[1759214150127,0.2402,4209.3,4208.1,21.77439241]
[1759214150337,0.2402,4209.3,4208.1,24.77439241]
[1759214150498,0.00113843,4209.7,4208.1,24.77439241]
[1759214150700,0.24133843,4209.7,4208.1,24.77439241]
[1759214151196,0.24133843,4209.7,4207.2,2.3768289]
[1759214151197,0.19213843,4209.7,4208.0,2.739]
[1759214151401,0.19213843,4209.7,4208.1,2.739]
[1759214151402,0.2402,4208.4,4208.1,2.739]
[1759214151602,0.2402,4208.4,4208.1,3.394]
[1759214153914,0.4652,4209.4,4208.1,3.394]
[1759214153915,0.7064,4208.2,4208.1,3.394]
[1759214154237,0.2412,4208.2,4208.1,3.394]
[1759214154438,0.7064,4208.2,4208.1,3.394]
[1759214154947,3.08271291,4208.2,4208.1,3.394]
[1759214155251,3.08271291,4208.2,4208.1,17.894]
[1759214155617,3.08271291,4208.2,4208.1,18.034]
[1759214157626,3.08271291,4208.2,4208.1,17.241]
[1759214158451,3.08271291,4208.2,4208.1,14.5]
[1759214158616,2.37659528,4207.7,4207.6,0.792]
[1759214158817,2.37683568,4207.3,4206.8,0.71477499]
[1759214159137,2.37683568,4207.3,4206.5,0.1968]
[1759214159138,0.2402,4207.2,4206.9,17.241]
[1759214159340,0.2402,4207.2,4207.0,3.533]
[1759214159648,2.37677626,4207.4,4207.0,3.9877]
[1759214159950,0.7054,4207.6,4207.0,3.9877]
[1759214160253,0.7054,4207.6,4207.0,0.792]
[1759214160254,2.37682847,4207.3,4207.0,0.792]
[1759214160423,0.2402,4207.2,4207.1,3.533]
[1759214161032,2.61707773,4207.2,4207.1,3.533]
[1759214161547,0.2402,4207.2,4207.1,3.533]
[1759214161751,2.61707773,4207.2,4207.1,3.533]
[1759214161928,2.61707773,4207.2,4207.1,0.792]
[1759214162124,3.08227773,4207.2,4207.1,0.792]
[1759214162351,0.7054,4207.2,4207.1,18.032]
[1759214162550,3.08227773,4207.2,4207.1,18.032]
[1759214164054,2.61707773,4207.2,4207.1,18.032]
[1759214164764,3.08227773,4207.2,4207.1,15.292]
[1759214164931,3.08227773,4207.2,4205.0,2.37807267]
[1759214164932,2.37715588,4206.8,4205.0,2.37807267]
[1759214165138,0.2402,4206.7,4205.3,11.9415]
[1759214165356,2.37732798,4206.5,4205.6,2.37778047]
[1759214165660,2.37732798,4206.5,4206.4,14.5]
[1759214165821,2.37732798,4206.5,4206.4,21.449]
[1759214166026,2.61752798,4206.5,4206.4,21.449]
[1759214166227,2.61752798,4206.5,4206.4,15.292]
[1759214166526,3.08272798,4206.5,4206.4,18.031]
[1759214168256,3.08272798,4206.5,4206.4,15.292]
[1759214168555,3.08272798,4206.5,4206.4,18.03]
[1759214168761,3.08267326,4206.5,4206.4,18.03]
[1759214169438,0.7054,4206.5,4206.4,18.03]
[1759214170328,3.08267326,4206.5,4206.4,18.03]
[1759214171538,2.37769072,4205.8,4205.0,4.6428]
[1759214171736,0.2491,4205.8,4205.1,9.32506149]
[1759214171935,0.2491,4205.8,4205.2,15.7248]
[1759214172285,0.2491,4205.8,4205.4,0.792]
[1759214172486,0.7068,4205.7,4205.6,0.792]
[1759214172670,0.2491,4205.9,4205.6,3.529]
[1759214172872,0.2491,4205.9,4205.8,0.792]
[1759214173192,0.4577,4205.9,4205.8,3.529]
[1759214173395,2.37693918,4207.1,4205.8,3.55277668]
[1759214173689,0.2491,4207.4,4206.5,0.792]
[1759214173899,0.2491,4207.3,4206.7,0.792]
[1759214174189,0.2491,4207.2,4206.9,0.792]
[1759214174492,0.4577,4207.2,4207.1,0.792]
[1759214174663,2.3768317,4207.3,4207.1,0.792]
[1759214174986,0.7068,4207.2,4207.1,0.792]
[1759214175287,0.7068,4207.2,4207.0,2.744]
[1759214175288,2.3769487,4207.1,4207.0,2.744]
[1759214175490,0.2359,4207.5,4207.1,0.792]
[1759214175798,2.37682123,4207.3,4207.2,3.537]
[1759214175955,3.30738419,4207.3,4207.2,2.746]
[1759214176356,2.87038419,4207.3,4207.2,3.538]